fUSD/lending_fUSD_20260630
["ID","MTS","AMOUNT","RATE_DAILY","PERIOD"]
[426773041,1782808232000,-166.66,0.00011068,2]
[426773043,1782808232000,-31241.25351385,0.00011099,2]
[426773044,1782808232000,-1002.22734277,0.00011177,2]
[426773052,1782808232000,-433.0,0.00011734,2]
[426773046,1782808232000,-152.83,0.00011233,2]
[426773049,1782808232000,-166.66,0.00011507,2]
[426773048,1782808232000,-166.66,0.00011397,2]
[426773050,1782808232000,-973.6,0.00011557,2]
[426773051,1782808232000,-330.00568746,0.00011683,2]
[426773053,1782808232000,-1712.59497458,0.00011903,2]
[426773055,1782808232000,-900.0,0.00012085,2]
[426773034,1782808232000,-255.0,0.00010668,2]
[426773047,1782808232000,-166.66,0.00011288,2]
[426773037,1782808232000,-1712.59497458,0.000109,2]
[426773020,1782808232000,-308.02,0.00010023,2]
[426773036,1782808232000,-379.32,0.00010874,2]
[426773016,1782808232000,-308.02,9.965e-05,2]
[426773017,1782808232000,-308.02,9.993e-05,2]
[426773021,1782808232000,-308.02,0.00010026,2]
[426773018,1782808232000,-500.0,0.0001002,2]
[426773057,1782808232000,-3000.0,0.00012085,2]
[426773019,1782808232000,-308.02,0.0001002,2]
[426773023,1782808232000,-308.02,0.00010048,2]
[426773022,1782808232000,-1748.13,0.00010027,2]
[426773028,1782808232000,-1748.13,0.00010278,2]
[426773025,1782808232000,-308.02,0.00010087,2]
[426773024,1782808232000,-308.02,0.00010076,2]
[426773027,1782808232000,-308.02,0.00010131,2]
[426773026,1782808232000,-308.02,0.00010103,2]
[426773030,1782808232000,-250.0,0.00010299,2]
[426773032,1782808232000,-1748.13,0.00010529,2]
[426773029,1782808232000,-500.0,0.00010294,2]
[426773031,1782808232000,-383.99075016,0.00010469,2]
[426773039,1782808232000,-166.66,0.00010959,2]
[426773056,1782808232000,-890.0,0.00012085,2]
[426773042,1782808232000,-31241.25351394,0.00011099,2]
[426773059,1782808232000,-3000.0,0.00012085,2]
[426773077,1782808232000,-208.08860698,0.00013407,2]
[426773054,1782808232000,-379.32,0.00011961,2]
[426773083,1782808232000,-150.0,0.00013415,2]
[426773082,1782808232000,-500.0,0.00013415,2]
[426773085,1782808232000,-156.63567136,0.00013415,2]
[426773087,1782808232000,-500.0,0.00013415,2]
[426773088,1782808232000,-499.7792651,0.00013415,2]
[426773084,1782808232000,-500.0,0.00013415,2]
[426773080,1782808232000,-500.0,0.00013415,2]
[426773086,1782808232000,-500.0,0.00013415,2]
[426773089,1782808232000,-208.08860697,0.00013503,2]
[426773091,1782808232000,-67896.59404094,0.00013507,2]
[426773092,1782808232000,-21802.8088421,0.00013507,2]
[426773094,1782808232000,-240.7529987,0.00013507,2]
[426773093,1782808232000,-53123.18133022,0.00013507,2]
[426773095,1782808232000,-32564.53383759,0.00013507,2]
[426773097,1782808232000,-4477.29315048,0.00013507,2]
[426773096,1782808232000,-8222.64526415,0.00013507,2]
[426773090,1782808232000,-20091.41578674,0.00013507,2]
[426773079,1782808232000,-500.0,0.00013415,2]
[426773081,1782808232000,-343.70322128,0.00013415,2]
[426773074,1782808232000,-1004.222631,0.00013369,2]
[426773060,1782808232000,-3000.0,0.00012085,2]
[426773064,1782808232000,-31241.25351385,0.00012113,2]
[426773061,1782808232000,-3000.0,0.00012085,2]
[426773063,1782808232000,-3012.98928842,0.00012085,2]
[426773062,1782808232000,-3000.0,0.00012085,2]
[426773078,1782808232000,-500.0,0.00013415,2]
[426773066,1782808232000,-736.0,0.00012908,2]
[426773065,1782808232000,-153.41756377,0.00012248,2]
[426773067,1782808232000,-379.32,0.00013049,2]
[426773058,1782808232000,-3000.0,0.00012085,2]
[426773069,1782808232000,-892.0,0.00013334,2]
[426773071,1782808232000,-1004.222631,0.00013369,2]
[426773070,1782808232000,-31241.25351385,0.00013369,2]
[426773076,1782808232000,-29183.29893676,0.00013407,2]
[426773098,1782808232000,-740.01793856,0.00013507,2]
[426773072,1782808232000,-1004.222631,0.00013369,2]
[426773075,1782808232000,-151.0,0.00013369,2]
[426773073,1782808232000,-1004.222631,0.00013369,2]
[426773068,1782808232000,-404.87137809,0.00013248,2]
[426773111,1782808237000,-1453.55163602,0.00013507,2]
[426773110,1782808237000,-5821.35679425,0.00013507,2]
[426773121,1782808239000,-853.64891409,0.00013507,2]
[426773119,1782808239000,-49705.31625778,0.00013507,2]
[426773120,1782808239000,-655.93406424,0.00013507,2]
[426773145,1782808242000,-777.67749305,0.00013507,2]
[426773147,1782808243000,-372.88204793,0.00013507,2]
[426773148,1782808243000,-16740.97514022,0.00013507,2]
[426773150,1782808243000,-374.83658851,0.00013507,2]
[426773151,1782808243000,-37.66697979,0.00013507,2]
[426773149,1782808243000,-4621.1965797,0.00013507,2]
[426773152,1782808245000,-2378.04443144,0.00013507,2]
[426773153,1782808246000,-3554.81020005,0.00013507,2]
[426773160,1782808713000,-319.38,9.608e-05,2]
[426773158,1782808713000,-300.0,9.608e-05,2]
[426773159,1782808713000,-150.0,9.608e-05,2]
[426773161,1782808713000,-208.18393976,9.608e-05,2]
[426773162,1782808715000,500.0,9.607e-05,2]
[426773163,1782808715000,500.0,9.607e-05,2]
[426773164,1782808715000,354.21741025,9.607e-05,2]
[426773165,1782808715000,483.65471023,9.607e-05,2]
[426773166,1782808715000,16.34528977,9.607e-05,2]
[426773168,1782808715000,461.21864999,9.607e-05,2]
[426773167,1782808715000,500.0,9.607e-05,2]
[426773170,1782809353000,-332.62,9.608e-05,2]
[426773171,1782809353000,-304.7,9.608e-05,2]
[426773173,1782809353000,-320.17,9.608e-05,2]
[426773176,1782809353000,-348.57,9.702e-05,2]
[426773174,1782809353000,-170.77395893,9.608e-05,2]
[426773172,1782809353000,-308.58,9.608e-05,2]
[426773179,1782809353000,-332.62,9.728e-05,2]
[426773175,1782809353000,-328.72,9.611e-05,2]
[426773180,1782809353000,-320.17,9.728e-05,2]
[426773177,1782809353000,-150.0,9.715e-05,2]
[426773181,1782809353000,-328.72,9.731e-05,2]
[426773182,1782809353000,-987.65,9.735e-05,2]
[426773185,1782809353000,-277.43481023,9.768e-05,2]
[426773183,1782809353000,-160.0,9.747e-05,2]
[426773184,1782809353000,-169.27123084,9.768e-05,2]
[426773178,1782809353000,-160.0,9.72e-05,2]
[426773188,1782809355000,-320.17,9.768e-05,2]
[426773186,1782809355000,-27.26518977,9.768e-05,2]
[426773187,1782809355000,-308.58,9.768e-05,2]
[426773189,1782809355000,-328.73,9.769e-05,2]
[426773190,1782809355000,-263.0,9.791e-05,2]
[426773191,1782809355000,-500.0,9.791e-05,2]
[426773193,1782809355000,-500.0,9.791e-05,2]
[426773194,1782809355000,-500.0,9.791e-05,2]
[426773195,1782809355000,-500.0,9.791e-05,2]
[426773197,1782809355000,-391.21105933,9.791e-05,2]
[426773196,1782809355000,-500.0,9.791e-05,2]
[426773198,1782809355000,-579.23534297,9.792e-05,2]
[426773192,1782809355000,-281.80840793,9.791e-05,2]
[426773201,1782809356000,-33.97459571,9.82e-05,2]
[426773200,1782809356000,-150.0,9.811e-05,2]
[426773199,1782809356000,-4816.02540429,9.792e-05,2]
[426773206,1782809357000,-500.0,9.85e-05,2]
[426773202,1782809357000,-170.77395893,9.608e-05,2]
[426773204,1782809357000,-332.62,9.848e-05,2]
[426773203,1782809357000,-123.13540429,9.82e-05,2]
[426773205,1782809357000,-320.17,9.848e-05,2]
[426773208,1782809357000,-448.38995651,9.85e-05,2]
[426773207,1782809357000,-255.97654828,9.85e-05,2]
[426773209,1782809357000,-500.0,9.85e-05,2]
[426773211,1782809357000,-453.69786681,9.85e-05,2]
[426773213,1782809357000,-328.72,9.851e-05,2]
[426773212,1782809357000,-500.0,9.85e-05,2]
[426773214,1782809357000,-152.54,9.852e-05,2]
[426773216,1782809357000,-229.69758609,9.894e-05,2]
[426773215,1782809357000,-220.0,9.866e-05,2]
[426773210,1782809357000,-464.27867909,9.85e-05,2]
[426773222,1782809359000,-320.17,9.969e-05,2]
[426773217,1782809359000,-118.87241391,9.894e-05,2]
[426773221,1782809359000,-332.62,9.969e-05,2]
[426773220,1782809359000,-308.58,9.929e-05,2]
[426773219,1782809359000,-304.7,9.929e-05,2]
[426773224,1782809359000,-328.72,9.971e-05,2]
[426773226,1782809359000,-2828.33758609,0.00010083,2]
[426773223,1782809359000,-150.0,9.969e-05,2]
[426773225,1782809359000,-158.0,0.00010004,2]
[426773218,1782809359000,-150.0,9.908e-05,2]
[426773230,1782809360000,-319.38,0.00010088,2]
[426773228,1782809360000,-348.57,0.00010086,2]
[426773229,1782809360000,-319.38,0.00010088,2]
[426773233,1782809360000,-308.58,0.00010089,2]
[426773227,1782809360000,-23.64136017,0.00010083,2]
[426773231,1782809360000,-332.62,0.00010089,2]
[426773234,1782809360000,-320.17,0.00010089,2]
[426773238,1782809360000,-500.0,0.00010091,2]
[426773235,1782809360000,-320.17,0.00010089,2]
[426773237,1782809360000,-328.73,0.00010089,2]
[426773236,1782809360000,-320.17,0.00010089,2]
[426773232,1782809360000,-304.7,0.00010089,2]
[426773240,1782809360000,-925.16863983,0.00010156,2]
[426773239,1782809360000,-328.72,0.00010092,2]
[426773244,1782809366000,-165.37,0.00010213,2]
[426773246,1782809366000,-1244.3,0.00010434,2]
[426773247,1782809366000,-1004.9474173,0.00010568,2]
[426773245,1782809366000,-500.0,0.00010365,2]
[426773243,1782809366000,-2180.19,0.00010164,2]
[426773242,1782809366000,-135.35183316,0.00010156,2]
[426773241,1782809366000,-180.23219754,0.00010088,2]
[426773266,1782809431000,-500.0,0.00010569,2]
[426773265,1782809431000,-250.0,0.00010569,2]
[426773267,1782809431000,-383.41546002,0.00010569,2]
[426773279,1782809431000,-350.93756315,0.00011176,2]
[426773268,1782809431000,-4000.0,0.00010569,2]
[426773271,1782809431000,-1244.3,0.00010955,2]
[426773269,1782809431000,-1244.3,0.00010694,2]
[426773262,1782809431000,-300.0,0.00010569,2]
[426773259,1782809431000,-151.0,0.00010324,2]
[426773263,1782809431000,-250.0,0.00010569,2]
[426773264,1782809431000,-193.0,0.00010569,2]
[426773261,1782809431000,-157.45015448,0.00010569,2]
[426773258,1782809431000,-150.0,0.00010201,2]
[426773256,1782809431000,-151.0,0.0001017,2]
[426773257,1782809431000,-150.0,0.00010201,2]
[426773255,1782809431000,-151.0,0.0001016,2]
[426773280,1782809431000,-166.66,0.00011178,2]
[426773260,1782809431000,-621.75888747,0.00010568,2]
[426773270,1782809431000,-170.18,0.00010781,2]
[426773298,1782809431000,-150.0,0.00012,2]
[426773277,1782809431000,-166.66,0.00011068,2]
[426773304,1782809431000,-4510.26102699,0.00012178,2]
[426773301,1782809431000,-433.0,0.00012062,2]
[426773290,1782809431000,-1400.0,0.000119,4]
[426773292,1782809431000,-500.0,0.00011945,2]
[426773281,1782809431000,-1244.3,0.00011216,2]
[426773278,1782809431000,-150.24552321,0.00011176,2]
[426773287,1782809431000,-187.09,0.00011515,2]
[426773295,1782809431000,-184.17923017,0.00012,2]
[426773286,1782809431000,-166.66,0.00011507,2]
[426773288,1782809431000,-165.37,0.00011898,2]
[426773282,1782809431000,-166.66,0.00011288,2]
[426773283,1782809431000,-166.66,0.00011397,2]
[426773284,1782809431000,-1244.3,0.00011477,2]
[426773274,1782809431000,-3541.27,0.00010959,2]
[426773276,1782809431000,-255.0,0.00010965,2]
[426773273,1782809431000,-150.0,0.00010959,2]
[426773275,1782809431000,-166.66,0.00010959,2]
[426773272,1782809431000,-150.0,0.00010959,2]
[426773285,1782809431000,-152.54,0.00011494,2]
[426773312,1782809432000,-3000.0,0.00012181,2]
[426773307,1782809432000,-22172.16064699,0.00012178,2]
[426773316,1782809432000,-152.0,0.00012181,2]
[426773310,1782809432000,-3000.0,0.00012181,2]
[426773318,1782809432000,-658.29424438,0.00012181,2]
[426773314,1782809432000,-3000.0,0.00012181,2]
[426773323,1782809432000,-1182.13036805,0.00012181,2]
[426773320,1782809432000,-562.0,0.00012181,2]
[426773325,1782809432000,-1271.17339584,0.00012181,2]
[426773326,1782809432000,-208.08860697,0.00012181,2]
[426773328,1782809432000,-41757.5779136,0.00012276,2]
[426773329,1782809432000,-122247.91091518,0.00012276,2]
[426773330,1782809432000,-14849.24695637,0.00012276,2]
[426773332,1782809432000,-8226.92010696,0.00012276,2]
[426773331,1782809432000,-5621.12087199,0.00012276,2]
[426773327,1782809432000,-13667.3825,0.00012181,2]
[426773347,1782809439000,-4245.32041381,0.00012276,2]
[426773346,1782809439000,-25495.6828667,0.00012276,2]
[426773344,1782809439000,-152.0,0.00010163,2]
[426773345,1782809439000,-150.0,0.00012276,2]
[426773349,1782809441000,-8294.85770499,0.00012276,2]
[426773348,1782809441000,-912.0,0.00012276,2]
[426773350,1782809441000,-935.07498695,0.00012276,2]
[426773352,1782809441000,-592.70955998,0.00012276,2]
[426773354,1782809441000,-6824.44946661,0.00012276,2]
[426773356,1782809441000,-1004.92610004,0.00012276,2]
[426773358,1782809441000,-1185.63,0.00012276,2]
[426773360,1782809441000,-348.34989378,0.00012276,2]
[426773351,1782809441000,-1687.46619784,0.00012276,2]
[426773370,1782809443000,-324.13373844,0.00012276,2]
[426773371,1782809443000,-26928.57665362,0.00012276,2]
[426773372,1782809443000,-4621.1965797,0.00012276,2]
[426773374,1782809443000,-774.79148828,0.00012276,2]
[426773373,1782809443000,-374.83658851,0.00012276,2]
[426773376,1782809443000,-890.01235286,0.00012276,2]
[426773377,1782809443000,-640.3936,0.00012276,2]
[426773378,1782809443000,-1817.94,0.00012276,2]
[426773375,1782809443000,-4491.5983011,0.00012276,2]
[426773383,1782809445000,-151.0,0.00012278,2]
[426773382,1782809445000,-158077.73637349,0.00012276,2]
[426773385,1782809445000,-151.0,0.00012278,2]
[426773388,1782809445000,-151.619631,0.00012281,2]
[426773386,1782809445000,-186254.0,0.00012281,2]
[426773387,1782809445000,-151.0,0.00012281,2]
[426773389,1782809445000,-13240.3618885,0.00012281,2]
[426773384,1782809445000,-151.0,0.00012278,2]
[426773415,1782809446000,-151.0,0.00012281,2]
[426773419,1782809446000,-151.0,0.00012281,2]
[426773420,1782809446000,-217.868566,0.00012281,2]
[426773421,1782809446000,-22172.16064699,0.00012931,2]
[426773424,1782809446000,-500.0,0.00013415,2]
[426773426,1782809446000,-500.0,0.00013415,2]
[426773425,1782809446000,-500.0,0.00013415,2]
[426773423,1782809446000,-265.0,0.00013268,2]
[426773422,1782809446000,-152.54,0.00013136,2]
[426773433,1782809446000,-200.0,0.00013507,2]
[426773429,1782809446000,-170.18,0.00013477,2]
[426773428,1782809446000,-501.72693256,0.00013415,2]
[426773431,1782809446000,-200.0,0.00013507,2]
[426773427,1782809446000,-500.0,0.00013415,2]
[426773436,1782809446000,-890.0,0.00013507,2]
[426773432,1782809446000,-200.0,0.00013507,2]
[426773434,1782809446000,-209.36548349,0.00013507,2]
[426773437,1782809446000,-892.0,0.00013507,2]
[426773435,1782809446000,-200.0,0.00013507,2]
[426773439,1782809446000,-3489.1371331,0.00013592,2]
[426773441,1782809446000,-200.0,0.00013642,2]
[426773440,1782809446000,-987.65,0.00013629,2]
[426773416,1782809446000,-151.0,0.00012281,2]
[426773430,1782809446000,-151.0,0.00013493,2]
[426773418,1782809446000,-151.0,0.00012281,2]
[426773438,1782809446000,-153.0,0.00013507,2]
[426773417,1782809446000,-151.0,0.00012281,2]
[426773390,1782809446000,-151.0,0.00012281,2]
[426773393,1782809446000,-151.0,0.00012281,2]
[426773391,1782809446000,-151.0,0.00012281,2]
[426773394,1782809446000,-156.735313,0.00012281,2]
[426773398,1782809446000,-803.378105,0.00012281,2]
[426773399,1782809446000,-803.378105,0.00012281,2]
[426773396,1782809446000,-803.378105,0.00012281,2]
[426773395,1782809446000,-803.378105,0.00012281,2]
[426773392,1782809446000,-151.0,0.00012281,2]
[426773397,1782809446000,-803.378105,0.00012281,2]
[426773400,1782809446000,-803.378105,0.00012281,2]
[426773414,1782809446000,-151.0,0.00012281,2]
[426773401,1782809446000,-803.378105,0.00012281,2]
[426773402,1782809446000,-803.378105,0.00012281,2]
[426773409,1782809446000,-803.378105,0.00012281,2]
[426773410,1782809446000,-803.378105,0.00012281,2]
[426773403,1782809446000,-803.378105,0.00012281,2]
[426773404,1782809446000,-803.378105,0.00012281,2]
[426773405,1782809446000,-803.378105,0.00012281,2]
[426773407,1782809446000,-803.378105,0.00012281,2]
[426773406,1782809446000,-803.378105,0.00012281,2]
[426773408,1782809446000,-803.378105,0.00012281,2]
[426773412,1782809446000,-151.0,0.00012281,2]
[426773413,1782809446000,-151.0,0.00012281,2]
[426773411,1782809446000,-151.0,0.00012281,2]
[426773445,1782809446000,-803.378109,0.00013681,2]
[426773498,1782809446000,-500.0,0.00013698,2]
[426773442,1782809446000,-803.378105,0.00013681,2]
[426773475,1782809446000,-500.0,0.00013698,2]
[426773479,1782809446000,-500.0,0.00013698,2]
[426773482,1782809446000,-500.0,0.00013698,2]
[426773481,1782809446000,-500.0,0.00013698,2]
[426773474,1782809446000,-500.0,0.00013698,2]
[426773480,1782809446000,-500.0,0.00013698,2]
[426773483,1782809446000,-500.0,0.00013698,2]
[426773485,1782809446000,-500.0,0.00013698,2]
[426773476,1782809446000,-500.0,0.00013698,2]
[426773484,1782809446000,-500.0,0.00013698,2]
[426773478,1782809446000,-500.0,0.00013698,2]
[426773472,1782809446000,-500.0,0.00013698,2]
[426773477,1782809446000,-500.0,0.00013698,2]
[426773490,1782809446000,-500.0,0.00013698,2]
[426773497,1782809446000,-500.0,0.00013698,2]
[426773494,1782809446000,-500.0,0.00013698,2]
[426773489,1782809446000,-500.0,0.00013698,2]
[426773487,1782809446000,-500.0,0.00013698,2]
[426773496,1782809446000,-500.0,0.00013698,2]
[426773491,1782809446000,-500.0,0.00013698,2]
[426773493,1782809446000,-500.0,0.00013698,2]
[426773492,1782809446000,-500.0,0.00013698,2]
[426773495,1782809446000,-500.0,0.00013698,2]
[426773446,1782809446000,-22172.16064699,0.00013683,2]
[426773488,1782809446000,-500.0,0.00013698,2]
[426773471,1782809446000,-482.54884208,0.00013698,2]
[426773486,1782809446000,-500.0,0.00013698,2]
[426773469,1782809446000,-500.0,0.00013698,2]
[426773444,1782809446000,-803.378105,0.00013681,2]
[426773470,1782809446000,-500.0,0.00013698,2]
[426773447,1782809446000,-500.0,0.00013698,2]
[426773443,1782809446000,-803.378105,0.00013681,2]
[426773449,1782809446000,-500.0,0.00013698,2]
[426773459,1782809446000,-500.0,0.00013698,2]
[426773448,1782809446000,-500.0,0.00013698,2]
[426773452,1782809446000,-500.0,0.00013698,2]
[426773451,1782809446000,-500.0,0.00013698,2]
[426773453,1782809446000,-500.0,0.00013698,2]
[426773455,1782809446000,-500.0,0.00013698,2]
[426773454,1782809446000,-502.71254218,0.00013698,2]
[426773450,1782809446000,-500.0,0.00013698,2]
[426773457,1782809446000,-500.0,0.00013698,2]
[426773467,1782809446000,-500.0,0.00013698,2]
[426773473,1782809446000,-500.0,0.00013698,2]
[426773464,1782809446000,-500.0,0.00013698,2]
[426773461,1782809446000,-500.0,0.00013698,2]
[426773466,1782809446000,-500.0,0.00013698,2]
[426773462,1782809446000,-500.0,0.00013698,2]
[426773465,1782809446000,-500.0,0.00013698,2]
[426773460,1782809446000,-500.0,0.00013698,2]
[426773456,1782809446000,-500.0,0.00013698,2]
[426773458,1782809446000,-621.18198622,0.00013698,2]
[426773468,1782809446000,-500.0,0.00013698,2]
[426773541,1782809447000,-299.99,0.00013699,2]
[426773548,1782809447000,-591.229397,0.00014,2]
[426773539,1782809447000,-487.43,0.00013699,2]
[426773540,1782809447000,-5741.14,0.00013699,2]
[426773538,1782809447000,-245.091024,0.00013699,2]
[426773526,1782809447000,-151.0,0.00013699,2]
[426773528,1782809447000,-151.0,0.00013699,2]
[426773527,1782809447000,-151.0,0.00013699,2]
[426773533,1782809447000,-151.0,0.00013699,2]
[426773530,1782809447000,-151.0,0.00013699,2]
[426773547,1782809447000,-409.41770734,0.0001391,2]
[426773537,1782809447000,-151.0,0.00013699,2]
[426773543,1782809447000,-2752.11,0.00013699,2]
[426773553,1782809447000,-1691.61497385,0.0001437,2]
[426773545,1782809447000,-200.0,0.00013778,2]
[426773542,1782809447000,-24657.57,0.00013699,2]
[426773546,1782809447000,-2800.0,0.000139,5]
[426773550,1782809447000,-194.48,0.00014123,2]
[426773558,1782809447000,-893.0,0.00014416,2]
[426773551,1782809447000,-511.21232853,0.00014218,2]
[426773561,1782809447000,-899.0,0.00014448,2]
[426773552,1782809447000,-169.31,0.00014231,2]
[426773559,1782809447000,-893.0,0.00014416,2]
[426773549,1782809447000,-4510.26102698,0.0001411,2]
[426773554,1782809447000,-156.75854824,0.00014395,2]
[426773555,1782809447000,-883.0,0.00014413,2]
[426773532,1782809447000,-151.0,0.00013699,2]
[426773544,1782809447000,-328.17975037,0.00013699,2]
[426773531,1782809447000,-151.0,0.00013699,2]
[426773501,1782809447000,-500.0,0.00013698,2]
[426773525,1782809447000,-151.0,0.00013699,2]
[426773499,1782809447000,-500.0,0.00013698,2]
[426773509,1782809447000,-500.0,0.00013698,2]
[426773510,1782809447000,-500.0,0.00013698,2]
[426773504,1782809447000,-500.0,0.00013698,2]
[426773556,1782809447000,-912.0,0.00014416,2]
[426773508,1782809447000,-501.81646866,0.00013698,2]
[426773507,1782809447000,-500.0,0.00013698,2]
[426773502,1782809447000,-500.0,0.00013698,2]
[426773505,1782809447000,-500.0,0.00013698,2]
[426773503,1782809447000,-500.0,0.00013698,2]
[426773500,1782809447000,-154.04320656,0.00013698,2]
[426773506,1782809447000,-500.0,0.00013698,2]
[426773511,1782809447000,-500.0,0.00013698,2]
[426773513,1782809447000,-500.0,0.00013698,2]
[426773514,1782809447000,-1455.83,0.00013698,2]
[426773512,1782809447000,-500.0,0.00013698,2]
[426773515,1782809447000,-1455.83,0.00013698,2]
[426773518,1782809447000,-500.0,0.00013698,2]
[426773516,1782809447000,-1455.83,0.00013698,2]
[426773520,1782809447000,-500.0,0.00013698,2]
[426773521,1782809447000,-500.0,0.00013698,2]
[426773522,1782809447000,-503.28685372,0.00013698,2]
[426773519,1782809447000,-500.0,0.00013698,2]
[426773517,1782809447000,-1455.83,0.00013698,2]
[426773535,1782809447000,-151.0,0.00013699,2]
[426773524,1782809447000,-151.0,0.00013699,2]
[426773534,1782809447000,-151.0,0.00013699,2]
[426773536,1782809447000,-151.0,0.00013699,2]
[426773523,1782809447000,-200.0,0.00013699,2]
[426773529,1782809447000,-151.0,0.00013699,2]
[426773557,1782809447000,-151.0,0.00014416,2]
[426773560,1782809447000,-22172.16064699,0.00014436,2]
[426773565,1782809447000,-150.0,0.00014516,2]
[426773598,1782809447000,-1455.83,0.00014998,2]
[426773596,1782809447000,-1000.0,0.0001497,2]
[426773597,1782809447000,-1323.28166648,0.0001499,2]
[426773600,1782809447000,-500.0,0.00014999,2]
[426773601,1782809447000,-500.0,0.00014999,2]
[426773611,1782809447000,-388138.06528953,0.00015,2]
[426773603,1782809447000,-500.0,0.00014999,2]
[426773602,1782809447000,-500.0,0.00014999,2]
[426773604,1782809447000,-500.0,0.00014999,2]
[426773609,1782809447000,-300.0,0.00014999,2]
[426773605,1782809447000,-1455.83,0.00014999,2]
[426773610,1782809447000,-178560.84702108,0.00015,2]
[426773606,1782809447000,-1455.83,0.00014999,2]
[426773593,1782809447000,-3669.929,0.00014963,2]
[426773607,1782809447000,-500.0,0.00014999,2]
[426773612,1782809447000,-2175.36069716,0.00015,2]
[426773614,1782809447000,-188.0,0.000152,2]
[426773617,1782809447000,-1080.45980729,0.0001541,2]
[426773620,1782809447000,-2175.36069716,0.000155,2]
[426773615,1782809447000,-2175.36069716,0.000152,2]
[426773618,1782809447000,-188.34970664,0.00015468,2]
[426773621,1782809447000,-859.41093004,0.00015565,2]
[426773619,1782809447000,-208.59887579,0.00015468,2]
[426773616,1782809447000,-2175.36069716,0.000153,2]
[426773622,1782809447000,-193.01409794,0.000156,2]
[426773623,1782809447000,-150.0,0.000156,2]
[426773624,1782809447000,-2175.36069716,0.000156,2]
[426773613,1782809447000,-22172.16064699,0.00015188,2]
[426773608,1782809447000,-500.0,0.00014999,2]
[426773595,1782809447000,-1000.0,0.0001497,2]
[426773599,1782809447000,-500.0,0.00014998,2]
[426773594,1782809447000,-1000.0,0.0001497,2]
[426773571,1782809447000,-658.29424438,0.00014601,2]
[426773568,1782809447000,-500.0,0.00014548,2]
[426773564,1782809447000,-9999.99,0.00014504,2]
[426773566,1782809447000,-890.0,0.00014516,2]
[426773569,1782809447000,-917.0,0.0001457,2]
[426773570,1782809447000,-160.0,0.00014597,2]
[426773573,1782809447000,-901.0,0.00014652,2]
[426773563,1782809447000,-910.0,0.00014483,2]
[426773567,1782809447000,-892.0,0.00014516,2]
[426773572,1782809447000,-227.12936538,0.00014608,2]
[426773586,1782809447000,-1278.0,0.00014963,2]
[426773575,1782809447000,-194.89403139,0.00014663,2]
[426773585,1782809447000,-1362.0,0.00014963,2]
[426773574,1782809447000,-175.97522278,0.00014663,2]
[426773579,1782809447000,-500.0,0.00014899,2]
[426773576,1782809447000,-387.0,0.00014772,2]
[426773577,1782809447000,-152.54,0.00014778,2]
[426773578,1782809447000,-216.62538722,0.00014792,2]
[426773580,1782809447000,-4300.0,0.000149,5]
[426773583,1782809447000,-160.051,0.00014931,2]
[426773582,1782809447000,-5788.623,0.00014931,2]
[426773581,1782809447000,-722.26136558,0.0001491,2]
[426773584,1782809447000,-3565.0,0.00014963,2]
[426773587,1782809447000,-1231.0,0.00014963,2]
[426773591,1782809447000,-150.0,0.00014963,2]
[426773589,1782809447000,-150.0,0.00014963,2]
[426773588,1782809447000,-150.0,0.00014963,2]
[426773590,1782809447000,-6088.0,0.00014963,2]
[426773592,1782809447000,-1217.0,0.00014963,2]
[426773562,1782809447000,-898.0,0.00014448,2]